bitfinex/quotes_ETHUSD_20240621
["timestamp","ask_amount","ask_price","bid_price","bid_amount"]
[1718941280038,0.55,3514.3,3513.4,3.0]
[1718941280244,2.3836,3514.4,3513.4,3.0]
[1718941282145,1.714,3514.7,3513.5,2.3966]
[1718941282346,3.09442195,3514.6,3513.5,2.3966]
[1718941282547,1.02422736,3514.6,3513.5,2.3966]
[1718941282857,1.51712608,3514.6,3513.5,2.3966]
[1718941283261,2.07029494,3514.5,3513.5,2.3966]
[1718941283463,1.02422736,3514.6,3513.5,2.3966]
[1718941283756,0.49291268,3514.4,3513.5,2.3966]
[1718941283966,2.57005197,3514.5,3513.5,2.3966]
[1718941284146,0.49291337,3514.4,3513.5,2.3966]
[1718941284483,0.49290982,3514.4,3513.5,2.3966]
[1718941286481,2.07023923,3514.5,3513.5,2.3966]
[1718941286666,0.4928756,3514.4,3513.6,1.27666]
[1718941286972,2.07023923,3514.5,3513.6,4.27666]
[1718941287187,0.49287048,3514.4,3513.6,4.27666]
[1718941287396,0.15987048,3514.4,3513.6,4.27666]
[1718941287591,0.15987048,3514.4,3513.7,0.667326]
[1718941287796,2.07023923,3514.5,3513.7,0.667326]
[1718941291570,2.07023923,3514.5,3513.8,2.4562]
[1718941291882,2.07023923,3514.5,3513.8,5.4562]
[1718941293483,2.94723923,3514.5,3513.8,5.4562]
[1718941297008,2.07023923,3514.5,3513.8,5.4562]
[1718941297173,2.07023923,3514.5,3513.9,0.8277186]
[1718941297369,0.49287088,3514.4,3513.9,3.8277186]
[1718941298197,0.49287088,3514.3,3513.9,3.8277186]
[1718941298508,0.49287088,3514.5,3513.9,3.8277186]
[1718941298685,2.56292807,3514.4,3513.9,3.8277186]
[1718941298886,0.49287088,3514.3,3513.9,3.8277186]
[1718941299108,0.4928709,3514.5,3513.9,3.8277186]
[1718941299328,2.56292847,3514.4,3513.9,3.8277186]
[1718941299476,0.4928709,3514.4,3513.9,3.8277186]
[1718941299676,0.4928709,3514.3,3513.9,3.8277186]
[1718941299911,0.4928709,3514.5,3513.9,3.8277186]
[1718941300227,2.56291549,3514.4,3513.9,3.0]
[1718941300406,2.56291549,3514.3,3513.8,2.4562]
[1718941300711,2.56293641,3514.2,3513.8,2.4562]
[1718941301015,0.4928709,3514.1,3513.8,2.4562]
[1718941301175,0.4928709,3514.3,3513.8,2.4562]
[1718941301515,2.56293777,3514.2,3513.8,2.4562]
[1718941301714,2.56293777,3514.1,3513.8,2.4562]
[1718941302018,0.877,3514.4,3513.7,3.0]
[1718941302019,2.56305115,3514.0,3513.7,3.0]
[1718941302219,2.56310405,3513.9,3513.5,2.4683]
[1718941302427,2.56315978,3513.8,3513.5,2.4683]
[1718941302621,2.56315978,3513.7,3513.5,2.4683]
[1718941302825,0.49290462,3513.6,3513.5,3.83983]
[1718941303123,0.49290462,3514.1,3513.5,5.4683]
[1718941303326,2.56315286,3514.0,3513.5,5.4683]
[1718941303489,2.56315286,3513.9,3513.6,3.0]
[1718941303825,2.56315286,3513.8,3513.5,2.4683]
[1718941304121,2.56315286,3513.7,3513.5,3.10283]
[1718941304328,0.877,3514.2,3513.6,3.0]
[1718941304503,2.56316327,3514.1,3513.6,3.0]
[1718941304822,2.56316327,3514.0,3513.6,3.0]
[1718941305020,2.56316327,3513.9,3513.6,3.0]
[1718941305264,0.877,3514.2,3513.6,3.0]
[1718941305517,0.877,3514.2,3512.9,19.65]
[1718941305518,0.877,3514.0,3513.3,3.0]
[1718941305727,0.6479535,3513.9,3513.1,2.4683]
[1718941306023,0.64798396,3513.8,3513.1,2.4683]
[1718941306224,0.64798396,3513.7,3513.1,2.4683]
[1718941306402,0.64798396,3513.6,3513.1,5.24472813]
[1718941306604,0.49297541,3513.9,3513.2,3.0]
[1718941306795,0.64798251,3513.8,3513.1,2.4683]
[1718941306994,0.877,3514.0,3513.1,2.4683]
[1718941306995,0.64798251,3513.7,3513.1,2.4683]
[1718941307224,0.1550071,3513.6,3513.1,2.4683]
[1718941307541,0.49297541,3513.8,3513.1,2.4683]
[1718941307703,0.64798169,3513.7,3513.2,1.37153]
[1718941307893,0.15500628,3513.6,3513.2,4.37153]
[1718941308093,0.49297541,3513.8,3513.2,4.37153]
[1718941308293,0.15500274,3513.7,3513.2,4.37153]
[1718941308555,0.64797694,3513.7,3513.2,4.37153]
[1718941308729,0.15500274,3513.6,3513.2,4.37153]
[1718941309098,0.15500383,3513.5,3513.2,4.37153]
[1718941309330,0.4929742,3513.7,3513.2,4.37153]
[1718941309521,0.1550018,3513.6,3513.3,0.683983]
[1718941309836,0.1550018,3513.5,3513.3,0.683983]
[1718941310023,0.4929742,3513.9,3513.3,0.683983]
[1718941310232,0.64796903,3513.8,3513.3,0.683983]
[1718941310518,0.877,3514.0,3513.3,0.683983]
[1718941310519,0.15499483,3513.7,3513.3,0.683983]
[1718941310703,0.15499483,3513.6,3513.3,0.683983]
[1718941311038,0.15499483,3513.5,3513.3,0.683983]
[1718941311328,0.4929742,3513.9,3513.4,0.7523813]
[1718941311500,0.15496499,3513.8,3513.2,4.37153]
[1718941313736,0.15496499,3513.7,3513.2,4.37153]
[1718941313934,0.15496499,3513.6,3513.2,4.37153]
[1718941314131,0.15496499,3513.5,3513.3,0.771683]
[1718941314313,0.15496499,3513.4,3513.3,0.771683]
[1718941314629,0.15496499,3513.4,3513.2,4.37153]
[1718941314832,0.15496499,3513.3,3513.2,4.37153]
[1718941315333,0.15496499,3513.9,3513.2,4.37153]
[1718941323925,0.15496499,3513.9,3513.2,5.24853]
[1718941324125,0.15496499,3513.9,3513.4,0.877]
[1718941324317,1.369967,3514.5,3513.4,0.877]
[1718941324318,0.15496499,3513.8,3513.4,0.877]
[1718941324518,0.15496499,3513.7,3513.4,0.877]
[1718941324818,0.15496499,3513.6,3513.4,0.877]
[1718941325017,0.15496499,3513.5,3513.4,0.877]
[1718941325248,0.15496499,3514.1,3513.4,1.7258513]
[1718941326849,0.15496499,3514.0,3513.4,1.7258513]
[1718941327051,0.15496499,3513.9,3513.3,3.0]
[1718941327345,0.15496499,3513.8,3513.2,5.24853]
[1718941327559,0.15496499,3513.7,3513.2,5.24853]
[1718941327849,0.15496499,3513.6,3513.2,5.24853]
[1718941328050,0.49292811,3513.9,3513.2,5.24853]
[1718941328051,0.15496499,3513.5,3513.2,5.24853]
[1718941328245,0.15496499,3513.4,3513.2,3.877]
[1718941328546,0.15496499,3513.3,3513.2,3.0]
[1718941328876,0.15496499,3513.3,3513.1,2.4683]
[1718941330050,0.6478931,3513.7,3513.1,2.4683]
[1718941330219,0.64795344,3513.6,3513.1,2.4683]
[1718941330420,0.15496499,3513.5,3513.1,2.4683]
[1718941330620,0.15496499,3513.4,3513.1,2.4683]
[1718941330852,0.15496499,3513.3,3513.1,2.4683]
[1718941331146,0.49298845,3513.6,3513.1,2.4683]
[1718941331147,0.15496499,3513.2,3513.1,3.83983]
[1718941331343,0.15496499,3513.2,3513.1,5.4683]
[1718941331512,0.64795344,3513.6,3513.1,5.4683]
[1718941331847,0.15496499,3513.5,3513.1,2.4683]
[1718941332055,0.15496499,3513.4,3513.1,2.4683]
[1718941332250,0.15496499,3513.3,3513.1,3.83983]
[1718941332544,0.49298845,3513.8,3513.2,3.0]
[1718941332760,0.49298845,3513.5,3513.2,3.0]
[1718941332913,0.15498696,3513.4,3513.1,2.4683]
[1718941333117,0.15498696,3513.3,3513.1,2.4683]
[1718941333317,0.15498696,3513.2,3513.1,2.4683]
[1718941333530,0.64797816,3513.7,3513.0,3.0]
[1718941333823,0.64797816,3513.6,3513.1,1.27554]
[1718941334023,0.64797816,3513.5,3513.1,1.27554]
[1718941334244,0.15498696,3513.4,3513.0,3.877]
[1718941334447,0.15498696,3513.3,3513.0,3.877]
[1718941334643,0.15498696,3513.2,3513.0,3.877]
[1718941334952,0.4929912,3513.5,3513.1,1.36324]
[1718941335151,0.1549844,3513.4,3513.0,3.877]
[1718941335352,0.1549844,3513.3,3513.0,3.877]
[1718941335653,0.877,3513.9,3513.0,3.877]
[1718941335654,0.1549844,3513.2,3513.0,3.877]
[1718941335841,0.877,3513.9,3513.0,3.0]
[1718941335842,0.1549844,3513.1,3513.0,3.0]
[1718941336046,0.15496434,3513.1,3513.0,3.0]
[1718941336746,0.15496434,3513.2,3513.0,3.0]
[1718941336947,0.15496434,3513.1,3513.0,3.0]
[1718941337725,0.15496434,3513.3,3513.0,3.0]
[1718941339858,0.15496434,3513.3,3512.9,3.0]
[1718941340062,0.15496434,3513.2,3512.9,3.0]
[1718941340231,0.15496434,3513.1,3512.9,3.0]
[1718941340431,0.15496434,3513.0,3512.9,3.0]
[1718941340627,0.64797685,3513.5,3512.9,3.62624]
[1718941340839,0.15496434,3513.4,3512.9,3.62624]
[1718941341042,0.15496434,3513.3,3512.9,3.62624]
[1718941341267,0.15496434,3513.2,3512.9,3.62624]
[1718941341453,0.15496434,3513.1,3512.9,3.0]
[1718941341648,2.3504,3513.7,3512.9,3.0]
[1718941341649,0.15496434,3513.0,3512.9,3.0]
[1718941341854,0.64797685,3513.5,3512.9,3.0]
[1718941342059,0.15496434,3513.4,3512.9,3.0]
[1718941342258,0.15496434,3513.3,3512.9,3.62624]
[1718941342433,0.15496434,3513.2,3512.9,3.62624]
[1718941342635,0.15496434,3513.1,3512.9,3.62624]
[1718941342973,0.49300786,3513.6,3513.0,0.50516597]
[1718941343174,2.3274,3514.0,3513.0,0.50516597]
[1718941343175,0.15495987,3513.5,3513.0,0.50516597]
[1718941343338,0.15495987,3513.4,3513.0,0.50516597]
[1718941343531,0.15495987,3513.3,3513.1,0.7393806]
[1718941343730,0.49300786,3513.9,3513.1,0.7393806]
[1718941343946,0.6479765,3513.8,3513.1,0.7393806]
[1718941344180,0.6479765,3513.7,3513.1,0.7393806]
[1718941344477,0.6479765,3513.6,3512.9,3.0]
[1718941344691,0.15496864,3513.5,3512.9,3.0]
[1718941344838,0.15496864,3513.4,3512.9,3.0]
[1718941345032,0.15496864,3513.3,3512.9,3.0]
[1718941345238,3.2044,3514.0,3513.0,0.62624]
[1718941345239,0.15496864,3513.2,3513.0,0.62624]
[1718941345546,0.15496864,3513.1,3513.0,0.62624]
[1718941345852,0.15496864,3513.1,3512.9,3.0]
[1718941346056,0.15496864,3513.0,3512.9,3.0]
[1718941347096,0.15496864,3513.4,3512.9,3.0]
[1718941347295,0.15496864,3513.3,3512.9,3.0]
[1718941347497,0.15496864,3513.2,3512.9,3.0]
[1718941347644,3.2044,3514.0,3512.9,3.0]
[1718941347645,0.15496864,3513.1,3512.9,3.0]
[1718941347844,0.15496864,3513.0,3512.9,3.0]
[1718941348074,0.15496864,3513.4,3512.9,3.62624]
[1718941348274,0.15496864,3513.3,3512.9,3.62624]
[1718941348470,0.15496864,3513.2,3512.9,3.0]
[1718941348753,1.714,3513.9,3512.6,3.0]
[1718941348754,0.15496864,3513.1,3512.6,3.0]
[1718941348990,2.4933,3513.3,3512.6,3.0]
[1718941348991,0.15496864,3513.0,3512.6,3.0]
[1718941349207,0.15496864,3512.9,3512.6,3.0]
[1718941349406,0.15496864,3512.8,3512.6,3.6172]
[1718941349603,0.15496864,3512.7,3512.6,3.0]
[1718941349810,0.15496864,3513.1,3512.6,3.0]
[1718941350101,0.15496864,3513.0,3512.6,3.0]
[1718941350336,0.15496864,3512.9,3512.6,3.0]
[1718941350488,0.15496864,3512.9,3512.2,7.37]
[1718941350489,0.15496864,3512.8,3512.3,3.877]
[1718941350808,0.15496864,3512.7,3512.3,6.2522]
[1718941351008,0.15496864,3512.6,3512.3,3.2522]
[1718941351163,0.15496864,3512.5,3512.3,4.31442]
[1718941351366,0.15496864,3512.4,3512.3,4.31442]
[1718941351678,3.3703,3513.3,3512.3,4.31442]
[1718941351679,0.15496864,3513.0,3512.3,4.31442]
[1718941352012,0.31504918,3513.2,3512.3,3.2522]
[1718941352175,3.3703,3513.3,3512.3,3.2522]
[1718941352512,3.3703,3513.3,3512.4,3.0]
[1718941352718,3.3703,3513.3,3512.4,4.36222]
[1718941354267,3.3703,3513.3,3512.4,3.0]
[1718941355815,3.3703,3513.3,3512.3,5.3752]
[1718941356203,1.714,3513.2,3512.3,3.0]
[1718941356509,2.4266,3513.0,3512.3,3.0]
[1718941360832,2.4266,3513.0,3512.1,0.877]
[1718941361135,2.4266,3513.0,3512.0,3.877]
[1718941362124,0.49312271,3512.9,3512.0,3.877]
[1718941364246,2.4266,3513.0,3512.0,3.0]
[1718941364458,0.877,3512.8,3512.0,3.0]
[1718941364735,1.37012436,3512.8,3512.0,3.0]
[1718941365621,2.0712082,3512.7,3512.0,3.0]
[1718941365827,2.56433256,3512.6,3512.0,3.0]
[1718941366159,2.56435087,3512.5,3512.0,3.0]
[1718941366334,2.56435087,3512.4,3512.1,1.28538]
[1718941366533,2.56435087,3512.3,3512.1,1.28538]
[1718941366835,2.56435087,3512.2,3512.0,3.0]
[1718941367035,2.56435087,3512.1,3511.7,3.877]
[1718941367347,2.56446234,3512.0,3511.7,3.877]
[1718941367553,2.56446234,3511.9,3511.8,1.36887]
[1718941367932,2.2689,3512.4,3511.8,1.36887]
[1718941368164,0.49317293,3511.9,3511.8,1.36887]
[1718941368315,2.56449924,3512.2,3511.8,1.36887]
[1718941368522,2.56449924,3512.1,3511.8,1.36887]
[1718941368821,2.56450843,3512.0,3511.9,1.505757]
[1718941369648,2.07132631,3512.0,3511.9,1.505757]
[1718941369863,2.07132631,3512.7,3511.9,1.505757]
[1718941370026,2.56444418,3512.6,3511.9,1.505757]
[1718941370232,2.56444418,3512.5,3511.9,1.505757]
[1718941370480,2.07114405,3512.4,3511.9,1.505757]
[1718941370638,0.49312924,3512.3,3512.0,0.5382757]
[1718941370838,2.07114405,3512.2,3512.0,0.5382757]
[1718941371152,2.56427329,3512.1,3512.0,0.5382757]
[1718941373748,2.56447877,3512.1,3512.0,0.5382757]
[1718941373952,2.56447976,3512.1,3511.9,1.505757]
[1718941374251,2.56447976,3512.0,3511.9,1.505757]
[1718941376779,2.07131201,3512.0,3511.9,1.505757]
[1718941377139,2.56448153,3512.0,3511.9,1.505757]
[1718941378558,2.56448153,3512.0,3511.7,3.0]
[1718941378758,2.56448153,3511.9,3511.8,0.877]
[1718941379877,2.3651,3512.7,3511.8,0.877]
[1718941380076,2.5642816,3511.9,3511.8,0.877]
[1718941380378,2.5642816,3511.9,3511.8,1.50887]
[1718941382296,2.56429453,3511.9,3511.8,1.50887]
[1718941385274,2.3651,3512.7,3511.8,1.50887]
[1718941385498,2.56433912,3512.6,3511.8,1.50887]
[1718941385695,2.56433912,3512.5,3511.8,1.50887]
[1718941385996,2.3651,3512.7,3511.8,1.50887]
[1718941386169,2.56434794,3512.4,3511.8,1.50887]
[1718941386374,2.56434794,3512.3,3511.8,1.50887]
[1718941386616,2.3651,3512.7,3511.9,0.695057]
[1718941386617,2.56434794,3512.2,3511.9,0.695057]
[1718941386901,2.56433462,3512.1,3511.8,0.877]
[1718941387076,2.56433462,3512.0,3511.8,0.877]
[1718941387276,2.56433462,3511.9,3511.8,0.877]
[1718941388498,2.56433462,3511.9,3511.8,1.50887]
[1718941388710,2.07119872,3511.9,3511.8,1.50887]
[1718941388861,0.49314255,3511.9,3511.8,1.50887]
[1718941389199,2.56434127,3512.5,3511.8,1.50887]
[1718941389376,2.07119872,3512.4,3511.8,1.50887]
[1718941389579,2.07119872,3512.3,3511.8,1.50887]
[1718941389793,2.56434127,3512.2,3512.0,0.877]
[1718941390099,2.56434127,3512.1,3512.0,3.2998]
[1718941390301,2.56434127,3512.1,3512.0,6.2998]
[1718941391813,2.56414035,3512.1,3512.0,6.2998]
[1718941392014,2.56414035,3512.1,3512.0,6.9992857]
[1718941394803,2.56414035,3512.1,3512.0,6.1222857]
[1718941395006,2.07104614,3512.1,3512.0,6.9992857]
[1718941395380,2.56415236,3512.1,3512.0,6.9992857]
[1718941396217,2.56415236,3512.1,3512.0,4.5764857]
[1718941396423,2.56415236,3512.1,3512.0,3.0]
[1718941397133,2.56415236,3512.1,3511.9,0.877]
[1718941397337,2.56415236,3512.0,3511.9,0.877]
[1718941398008,2.07106265,3512.0,3511.9,0.877]
[1718941398222,2.5641728,3512.0,3511.9,1.50383]
[1718941401229,0.49310545,3512.0,3511.9,1.50383]
[1718941401436,2.07104291,3512.0,3511.9,1.50383]
[1718941401633,2.3029,3512.4,3511.9,1.45383]
[1718941401937,2.56414494,3512.3,3511.9,0.827]
[1718941402140,2.56414494,3512.2,3511.9,0.827]
[1718941402434,2.56414647,3512.1,3511.9,0.827]
[1718941402642,2.56414647,3512.0,3511.9,0.827]
[1718941404444,0.49310979,3512.0,3511.9,0.827]
[1718941404634,2.07106112,3512.0,3511.9,0.827]
[1718941405248,2.56417091,3512.0,3511.9,0.827]
[1718941407532,2.3029,3512.4,3511.9,0.827]
[1718941407841,2.56416361,3512.3,3511.9,0.827]
[1718941408063,2.56416361,3512.2,3511.9,0.827]
[1718941408276,2.56416361,3512.1,3511.9,0.827]
[1718941408433,2.56416361,3512.0,3511.9,0.827]
[1718941409445,2.07107514,3512.0,3511.9,1.44883]
[1718941409882,2.56418826,3512.0,3511.9,1.44883]
[1718941413992,2.56418767,3512.0,3511.9,1.44883]
[1718941414768,2.56418767,3512.0,3511.9,3.73703]
[1718941414989,2.56418767,3512.0,3511.9,6.73703]
[1718941417208,2.56414778,3512.0,3511.9,6.73703]
[1718941417722,2.56415027,3512.0,3511.9,6.73703]
[1718941417877,2.56253587,3512.0,3511.9,6.73703]
[1718941418423,2.071036,3512.0,3511.9,6.73703]
[1718941419635,2.071036,3512.9,3511.9,6.73703]
[1718941419931,2.071036,3512.8,3512.3,0.877]
[1718941420076,2.071036,3512.7,3512.3,0.877]
[1718941420278,2.07084962,3512.6,3512.3,0.877]
[1718941420514,2.07084962,3512.5,3512.3,0.877]
[1718941420744,2.07084962,3512.4,3512.3,1.2647]
[1718941420928,2.07084962,3512.4,3512.3,3.7074]
[1718941421134,2.07084962,3512.4,3512.3,6.7074]
[1718941421462,2.07084962,3513.3,3512.3,6.7074]
[1718941421614,2.07084962,3513.2,3513.0,0.877]
[1718941421853,2.07084962,3513.1,3513.0,0.877]
[1718941422224,2.07084962,3513.1,3512.8,0.877]
[1718941422428,2.07084962,3513.0,3512.8,0.877]
[1718941422627,2.07084962,3512.9,3512.8,0.877]
[1718941422807,2.07084962,3512.9,3512.8,1.50897]
[1718941423247,2.42,3513.6,3512.8,1.50897]
[1718941423472,2.07051516,3513.5,3512.8,1.50897]
[1718941423670,2.07051516,3513.4,3512.8,1.50897]
[1718941423954,2.07051516,3513.3,3512.8,1.50897]
[1718941424267,2.07051516,3513.2,3512.9,0.695167]
[1718941424430,2.07051516,3513.1,3512.9,0.695167]
[1718941424617,2.07051516,3513.0,3512.9,0.695167]
[1718941424949,2.07051516,3513.0,3512.8,0.877]
[1718941425258,2.07051516,3512.9,3512.8,0.877]
[1718941425548,2.07051516,3513.5,3512.8,0.877]
[1718941425753,2.07051516,3513.4,3512.8,0.877]
[1718941425946,2.07051516,3513.3,3513.0,0.877]
[1718941426131,2.07051516,3513.2,3513.0,0.877]
[1718941426341,2.42,3513.6,3513.0,0.877]
[1718941426342,2.07051516,3513.1,3513.0,0.877]
[1718941426720,2.07051516,3513.5,3513.0,0.877]
[1718941426916,2.07051516,3513.4,3513.0,0.877]
[1718941427123,2.07051516,3513.3,3513.0,1.327897]
[1718941427340,2.07051516,3513.2,3513.0,1.327897]
[1718941427542,2.07051516,3513.1,3513.0,1.327897]
[1718941427755,2.07051516,3513.5,3513.0,1.327897]
[1718941427962,2.56348246,3513.4,3513.1,2.69389891]
[1718941428163,2.07051516,3513.3,3513.2,3.0]
[1718941428327,2.436,3514.8,3513.3,2.4836]
[1718941428534,2.436,3514.8,3513.2,3.0]
[1718941428535,2.56279794,3514.7,3514.4,0.877]
[1718941428852,2.56279794,3514.6,3514.4,0.877]
[1718941429044,2.06994577,3514.5,3514.4,0.877]
[1718941429241,2.436,3514.8,3514.4,0.877]
[1718941429473,2.5624761,3514.7,3514.4,0.877]
[1718941429639,2.06969231,3514.6,3514.4,0.877]
[1718941429843,2.06969231,3514.5,3514.4,0.877]
[1718941430030,2.349,3515.1,3514.4,0.877]
[1718941430031,2.06960344,3515.0,3514.4,0.877]
[1718941430237,2.06960344,3515.0,3514.6,0.877]
[1718941430975,2.06960344,3515.0,3514.4,0.877]
[1718941431776,2.51146378,3515.0,3514.2,3.0]
[1718941432079,2.06960344,3514.9,3514.4,0.877]
[1718941432277,0.44186034,3515.0,3514.4,0.877]
[1718941432776,0.44186034,3515.0,3514.2,3.0]
[1718941432990,2.34869042,3514.9,3514.1,3.0]
[1718941433136,2.06960439,3514.8,3514.1,3.0]
[1718941433341,2.4021,3514.7,3514.1,3.0]
[1718941433569,2.4021,3514.7,3514.1,3.877]
[1718941438270,2.3947,3515.1,3514.3,0.877]
[1718941438875,2.3947,3515.1,3514.3,3.877]
[1718941441473,2.3947,3515.1,3514.4,3.0]
[1718941441671,2.3947,3515.1,3514.3,0.877]
[1718941444799,2.3930856,3515.1,3514.3,0.877]
[1718941446088,2.3930856,3515.1,3514.7,0.877]
[1718941446416,1.9986,3516.5,3514.8,0.05681745]
[1718941446417,0.877,3515.8,3514.8,0.05681745]
[1718941446633,2.06949832,3515.7,3514.9,0.877]
[1718941446919,0.877,3516.0,3515.1,0.877]
[1718941447085,2.06932334,3515.9,3515.1,0.05682913]
[1718941447290,0.45432908,3515.8,3515.1,0.05682913]
[1718941447520,0.877,3516.0,3515.1,0.05682913]
[1718941447921,2.279,3515.9,3515.1,0.05682913]
[1718941450993,2.2766,3516.4,3515.6,0.877]
[1718941451197,2.67556,3516.4,3515.6,0.877]
[1718941451420,2.67556,3516.4,3515.3,10.42682589]
[1718941451631,2.67556,3516.4,3515.5,0.877]
[1718941451807,2.53356,3516.4,3515.5,0.877]
[1718941452495,2.53356,3516.4,3515.5,0.93388367]
[1718941452835,0.341056,3516.3,3515.5,0.93388367]
[1718941453050,0.341056,3516.3,3515.5,0.877]
[1718941454033,0.55,3516.2,3515.3,11.247]
[1718941455609,2.2863,3516.1,3515.3,11.247]
[1718941455842,2.2863,3516.1,3515.3,3.877]
[1718941456060,0.3177356,3516.0,3515.3,0.877]
[1718941456273,0.3177356,3516.0,3515.1,3.0]
[1718941456461,0.3177356,3516.0,3515.3,0.877]
[1718941457479,0.81040655,3516.0,3515.3,0.877]
[1718941459352,0.81040655,3516.0,3515.5,0.877]
[1718941459353,0.49267095,3516.0,3515.5,0.877]
[1718941459556,0.49261648,3516.0,3515.5,0.877]
[1718941459977,0.49261648,3516.0,3515.8,0.877]
[1718941460186,2.3185,3516.6,3515.8,0.877]
[1718941460478,0.77372813,3516.5,3515.8,0.877]
[1718941461553,0.77372813,3516.5,3515.3,3.0]
[1718941461756,0.77372813,3516.5,3515.7,0.877]
[1718941462577,0.77371709,3516.5,3515.7,0.877]
[1718941463547,0.77371709,3516.5,3515.3,3.0]
[1718941463747,2.4891,3516.3,3515.5,0.877]
[1718941464079,0.49260544,3516.2,3515.5,0.877]
[1718941465050,0.49260544,3516.2,3515.7,0.877]
[1718941465480,2.4891,3516.3,3515.7,0.877]
[1718941465664,0.49261234,3516.2,3515.3,3.0]
[1718941465868,0.49261234,3516.2,3515.2,2.3809]
[1718941465869,0.49261799,3516.2,3515.5,0.877]
[1718941466502,2.375,3516.1,3515.5,0.877]
[1718941466647,2.375,3516.1,3515.1,3.0]
[1718941466648,0.49261799,3516.0,3515.1,3.0]
[1718941466843,0.49261799,3516.0,3515.2,0.877]
[1718941467072,0.81894412,3516.0,3515.2,0.877]
[1718941467653,0.81899436,3516.0,3515.2,0.877]
[1718941468282,0.49266823,3516.0,3515.2,0.877]
[1718941468592,2.375,3516.1,3515.6,0.877]
[1718941469052,0.49262322,3516.0,3515.6,0.877]
[1718941469254,0.49262322,3516.0,3515.5,3.0]
[1718941469579,2.4497,3516.5,3515.9,0.877]
[1718941469980,0.4925572,3516.4,3515.9,0.877]
[1718941470957,0.4925572,3516.4,3515.5,10.37]
[1718941471280,0.4925572,3516.4,3515.8,0.877]
[1718941471863,2.4497,3516.5,3515.8,0.877]
[1718941472045,0.82524181,3516.4,3515.8,0.877]
[1718941472987,2.3554,3516.2,3515.5,10.37]
[1718941473192,0.49257181,3516.1,3515.5,10.37]
[1718941473376,2.3545,3516.0,3515.5,10.37]
[1718941473562,0.49257181,3515.9,3515.5,10.37]
[1718941474189,0.49257181,3515.9,3515.5,11.247]
[1718941474686,0.49257181,3515.9,3515.5,12.3717]
[1718941474854,0.49257181,3515.9,3515.5,14.6305]
[1718941475053,0.4926079,3516.2,3515.5,14.6305]
[1718941476656,0.4926079,3516.2,3515.5,7.2605]
[1718941477057,0.4926079,3516.2,3515.9,0.877]
[1718941477450,0.4926079,3516.5,3516.1,0.877]
[1718941477654,0.4926079,3516.5,3516.3,0.877]
[1718941477881,0.4926079,3516.8,3516.3,0.877]
[1718941478084,0.49253163,3516.8,3516.3,0.877]
[1718941479079,0.49253163,3516.8,3515.6,0.72605]
[1718941479277,0.49253163,3516.8,3516.1,0.877]
[1718941480590,0.49253163,3516.8,3515.9,0.877]
[1718941480982,0.49253163,3516.7,3515.8,0.877]
[1718941481174,0.49258071,3516.6,3515.8,0.877]
[1718941481380,0.36753807,3516.5,3515.8,0.877]
[1718941482078,0.36753807,3516.5,3515.5,3.0]
[1718941482293,0.36753807,3516.5,3515.3,3.0]
[1718941482294,3.1828,3516.4,3515.3,3.0]
[1718941482511,0.49258075,3516.3,3515.3,3.877]
[1718941482683,0.84761456,3516.3,3515.3,3.877]
[1718941482884,0.49258075,3516.2,3515.3,3.877]
[1718941483310,0.877,3515.9,3515.3,3.0]
[1718941483611,1.04258075,3515.8,3515.3,3.0]
[1718941483782,0.68453883,3515.7,3515.2,7.37]
[1718941483996,0.19195808,3515.7,3515.2,7.37]
[1718941484179,0.49274077,3515.6,3515.2,7.37]
[1718941484376,0.49274077,3515.6,3514.7,8.247]
[1718941484598,0.49274334,3515.6,3514.7,8.247]
[1718941484802,0.70391348,3515.6,3514.7,7.37]
[1718941485114,2.4263,3515.4,3514.8,3.0]
[1718941485286,0.49276896,3515.3,3514.8,3.0]
[1718941485483,0.49276896,3515.3,3514.7,7.37]
[1718941486729,0.55,3515.2,3514.3,7.37]
[1718941487042,0.55,3515.2,3514.4,3.0]
[1718941487731,0.49276896,3515.3,3514.4,4.037]
[1718941487891,0.49276896,3515.3,3514.5,0.02792394]
[1718941488302,0.49276896,3515.3,3514.4,4.037]
[1718941490142,2.4263,3515.4,3514.4,3.0]
[1718941490443,1.0427624,3515.3,3514.4,3.0]
[1718941490644,2.7557624,3515.3,3514.4,3.0]
[1718941490815,0.4927624,3515.2,3514.3,7.37]
[1718941491023,0.55,3515.1,3514.3,7.37]
[1718941492042,0.55,3515.1,3514.4,3.0]
[1718941492255,2.2919,3515.0,3514.4,3.0]
[1718941492454,1.0427624,3514.9,3514.4,3.0]
[1718941492607,0.55976624,3514.8,3514.4,3.0]
[1718941493851,3.0072,3514.7,3513.9,3.0]
[1718941494024,0.49288101,3514.6,3513.9,3.0]
[1718941495432,0.55,3514.5,3513.9,3.0]
[1718941496348,1.04290334,3514.6,3513.9,3.0]
[1718941496672,0.52131033,3514.5,3513.9,3.0]
[1718941496835,0.55,3514.4,3513.9,3.0]
[1718941497238,0.55,3514.4,3513.6,3.0]
[1718941498674,0.55,3514.5,3513.6,3.0]
[1718941500339,2.2615,3514.4,3513.6,3.0]
[1718941500544,1.49537516,3514.3,3513.6,3.0]
[1718941501577,2.71545,3514.3,3513.6,3.0]
[1718941501866,2.82655639,3514.2,3513.6,3.0]
[1718941502038,1.04295639,3514.1,3513.6,3.0]
[1718941503666,2.3336,3514.2,3513.6,3.0]
[1718941503973,2.3336,3514.2,3513.3,3.0]
[1718941504169,2.3336,3514.2,3513.4,2.49506]
[1718941506404,0.49294719,3514.1,3513.4,2.49506]
[1718941506677,2.4258,3515.0,3513.5,4.5783]
[1718941506973,2.4258,3515.0,3514.0,2.3079]
[1718941507157,2.2711,3515.7,3514.1,0.44109]